fUSD/lending_fUSD_20241230
["ID","MTS","AMOUNT","RATE_DAILY","PERIOD"]
[347186372,1735554667140,-588.10812254,0.0001452,2]
[347186373,1735554667150,-971.2,0.0001452,2]
[347186374,1735554667159,-852.09,0.0001452,2]
[347186375,1735554667168,-500.0,0.0001452,2]
[347186376,1735554667179,-500.0,0.0001452,2]
[347186377,1735554667187,-526.98,0.0001452,2]
[347186378,1735554667196,-1602.37,0.0001452,2]
[347186379,1735554667205,-500.0,0.0001452,2]
[347186380,1735554667217,-500.0,0.0001452,2]
[347186381,1735554667226,-1168.41,0.0001452,2]
[347186382,1735554667235,-718.04,0.0001452,2]
[347186383,1735554667244,-520.46,0.0001452,2]
[347186384,1735554667254,-500.0,0.0001452,2]
[347186385,1735554667264,-500.0,0.0001452,2]
[347186386,1735554667273,-500.0,0.0001452,2]
[347186387,1735554667282,-500.0,0.0001452,2]
[347186388,1735554667292,-500.97,0.0001452,2]
[347186389,1735554667301,-1610.98,0.0001452,2]
[347186390,1735554667311,-522.32,0.0001452,2]
[347186391,1735554667320,-500.0,0.0001452,2]
[347186392,1735554667330,-829.69,0.0001452,2]
[347186393,1735554667339,-500.0,0.0001452,2]
[347186394,1735554667348,-500.0,0.0001452,2]
[347186395,1735554667357,-592.14,0.0001452,2]
[347186396,1735554667366,-500.0,0.0001452,2]
[347186397,1735554667375,-743.74,0.0001452,2]
[347186398,1735554667384,-822.9,0.0001452,2]
[347186399,1735554667394,-500.0,0.0001452,2]
[347186400,1735554667403,-500.0,0.0001452,2]
[347186401,1735554667412,-500.0,0.0001452,2]
[347186402,1735554667421,-500.0,0.0001452,2]
[347186403,1735554667430,-500.0,0.0001452,2]
[347186404,1735554667439,-302.88978474,0.0001452,2]
[347186405,1735554667448,-961.28,0.0001452,2]
[347186406,1735554667457,-500.0,0.0001452,2]
[347186407,1735554667468,-1300.51,0.0001452,2]
[347186408,1735554667477,-1306.13,0.0001452,2]
[347186409,1735554667486,-1211.16,0.0001452,2]
[347186410,1735554667495,-500.0,0.0001452,2]
[347186411,1735554667504,-500.0,0.0001452,2]
[347186412,1735554667513,-381.9,0.0001452,2]
[347186413,1735554667522,-644.72,0.0001452,2]
[347186414,1735554667531,-507.58,0.0001452,2]
[347186415,1735554667540,-500.0,0.0001452,2]
[347186416,1735554667550,-1716.07,0.0001452,2]
[347186417,1735554667559,-500.0,0.0001452,2]
[347186418,1735554667567,-685.33,0.0001452,2]
[347186419,1735554667576,-500.0,0.0001452,2]
[347186420,1735554667586,-500.0,0.0001452,2]
[347186421,1735554667594,-1140.3,0.0001452,2]
[347186422,1735554667604,-1582.78,0.0001452,2]
[347186423,1735554667613,-1527.24,0.0001452,2]
[347186424,1735554667622,-500.0,0.0001452,2]
[347186425,1735554667631,-1499.25,0.0001452,2]
[347186426,1735554667640,-500.0,0.0001452,2]
[347186427,1735554667649,-1626.34,0.0001452,2]
[347186428,1735554667658,-500.0,0.0001452,2]
[347186429,1735554667668,-799.47,0.0001452,2]
[347186430,1735554667677,-775.88,0.0001452,2]
[347186431,1735554667687,-500.0,0.0001452,2]
[347186432,1735554667696,-500.0,0.0001452,2]
[347186433,1735554667705,-500.0,0.0001452,2]
[347186434,1735554667718,-936.82,0.0001452,2]
[347186435,1735554667727,-789.36,0.0001452,2]
[347186436,1735554667737,-1745.68,0.0001452,2]
[347186437,1735554667746,-747.79,0.0001452,2]
[347186438,1735554667755,-500.0,0.0001452,2]
[347186439,1735554667765,-500.0,0.0001452,2]
[347186440,1735554667774,-608.35,0.0001452,2]
[347186441,1735554667783,-500.0,0.0001452,2]
[347186442,1735554667793,-500.0,0.0001452,2]
[347186443,1735554667802,-500.0,0.0001452,2]
[347186444,1735554667811,-539.77,0.0001452,2]
[347186445,1735554667974,-500.0,0.0001452,2]
[347186446,1735554667984,-500.0,0.0001452,2]
[347186447,1735554667994,-745.85,0.0001452,2]
[347186448,1735554668003,-782.89,0.0001452,2]
[347186449,1735554668012,-881.97,0.0001452,2]
[347186450,1735554668021,-500.0,0.0001452,2]
[347186451,1735554668031,-570.91,0.0001452,2]
[347186452,1735554668040,-500.0,0.0001452,2]
[347186453,1735554668049,-500.0,0.0001452,2]
[347186454,1735554668058,-822.0,0.0001452,2]
[347186455,1735554668067,-1033.39,0.0001452,2]
[347186456,1735554668077,-854.9,0.0001452,2]
[347186457,1735554668086,-703.8,0.0001452,2]
[347186458,1735554668096,-500.0,0.0001452,2]
[347186459,1735554668109,-843.64,0.0001452,2]
[347186460,1735554668118,-500.0,0.0001452,2]
[347186461,1735554668128,-500.0,0.0001452,2]
[347186462,1735554668136,-1660.3,0.0001452,2]
[347186463,1735554668146,-1063.44,0.0001452,2]
[347186464,1735554668155,-543.78,0.0001452,2]
[347186465,1735554668164,-702.65,0.0001452,2]
[347186466,1735554668173,-500.0,0.0001452,2]
[347186467,1735554668183,-652.4,0.0001452,2]
[347186468,1735554668193,-1187.1,0.0001452,2]
[347186469,1735554668202,-505.09,0.0001452,2]
[347186470,1735554668211,-829.36,0.0001452,2]
[347186471,1735554668223,-304.24395688,0.0001452,2]
[347186472,1735554668233,-575.86,0.0001452,2]
[347186473,1735554668242,-500.0,0.0001452,2]
[347186474,1735554668252,-500.0,0.0001452,2]
[347186475,1735554668262,-500.0,0.0001452,2]
[347186476,1735554668271,-906.93,0.0001452,2]
[347186477,1735554668280,-624.19,0.0001452,2]
[347186478,1735554668289,-1156.63,0.0001452,2]
[347186479,1735554668298,-713.62,0.0001452,2]
[347186480,1735554668307,-614.22,0.0001452,2]
[347186481,1735554668317,-500.0,0.0001452,2]
[347186482,1735554668326,-537.93,0.0001452,2]
[347186483,1735554668336,-1282.53,0.0001452,2]
[347186484,1735554668345,-1876.89,0.0001452,2]
[347186485,1735554668354,-789.0,0.0001452,2]
[347186486,1735554668364,-946.81,0.0001452,2]
[347186487,1735554668373,-1388.83,0.0001452,2]
[347186488,1735554668382,-1179.27,0.0001452,2]
[347186489,1735554668391,-1973.96,0.0001452,2]
[347186490,1735554668401,-1045.87,0.0001452,2]
[347186491,1735554668410,-1690.16,0.0001452,2]
[347186492,1735554668419,-1459.4,0.0001452,2]
[347186493,1735554668429,-740.94,0.0001452,2]
[347186494,1735554668438,-1041.91,0.0001452,2]
[347186495,1735554668447,-994.29,0.0001452,2]
[347186496,1735554668456,-645.11,0.0001452,2]
[347186497,1735554668466,-500.0,0.0001452,2]
[347186498,1735554668475,-1167.76,0.0001452,2]
[347186499,1735554668484,-528.4,0.0001452,2]
[347186500,1735554668493,-500.0,0.0001452,2]
[347186501,1735554668503,-500.0,0.0001452,2]
[347186502,1735554668513,-500.0,0.0001452,2]
[347186503,1735554668522,-1770.26,0.0001452,2]
[347186504,1735554668532,-1922.14,0.0001452,2]
[347186505,1735554668541,-500.0,0.0001452,2]
[347186506,1735554668551,-2056.26,0.0001452,2]
[347186507,1735554668560,-500.0,0.0001452,2]
[347186508,1735554668569,-2616.4,0.0001452,2]
[347186509,1735554668578,-500.0,0.0001452,2]
[347186510,1735554668588,-830.19,0.0001452,2]
[347186511,1735554668597,-563.78,0.0001452,2]
[347186512,1735554668607,-933.75,0.0001452,2]
[347186513,1735554668616,-500.0,0.0001452,2]
[347186514,1735554668625,-1862.34,0.0001452,2]
[347186515,1735554668635,-500.0,0.0001452,2]
[347186516,1735554668644,-4223.89,0.0001452,2]
[347186517,1735554668653,-500.0,0.0001452,2]
[347186518,1735554668663,-500.0,0.0001452,2]
[347186519,1735554668672,-500.0,0.0001452,2]
[347186520,1735554668681,-1896.09,0.0001452,2]
[347186521,1735554668691,-1233.39,0.0001452,2]
[347186522,1735554668700,-500.0,0.0001452,2]
[347186523,1735554668709,-1415.62,0.0001452,2]
[347186524,1735554668720,-500.0,0.0001452,2]
[347186525,1735554668730,-3114.35,0.0001452,2]
[347186526,1735554668739,-2442.05,0.0001452,2]
[347186527,1735554668748,-848.86,0.0001452,2]
[347186528,1735554668758,-836.45,0.0001452,2]
[347186529,1735554668767,-1119.39,0.0001452,2]
[347186530,1735554668777,-500.0,0.0001452,2]
[347186531,1735554668787,-922.12,0.0001452,2]
[347186532,1735554668796,-1004.42,0.0001452,2]
[347186533,1735554668806,-500.0,0.0001452,2]
[347186534,1735554668815,-1421.43,0.0001452,2]
[347186535,1735554668824,-642.54,0.0001452,2]
[347186536,1735554668835,-1590.22,0.0001452,2]
[347186537,1735554668844,-500.0,0.0001452,2]
[347186538,1735554668854,-5206.57,0.0001452,2]
[347186539,1735554668863,-1027.59,0.0001452,2]
[347186540,1735554668873,-984.07,0.0001452,2]
[347186541,1735554668882,-1269.5,0.0001452,2]
[347186542,1735554668891,-500.0,0.0001452,2]
[347186543,1735554668901,-747.2,0.0001452,2]
[347186544,1735554668910,-17794.2,0.0001452,2]
[347186545,1735554668919,-500.0,0.0001452,2]
[347186546,1735554668928,-895.8,0.0001452,2]
[347186547,1735554668938,-1186.15,0.0001452,2]
[347186548,1735554668947,-1748.97,0.0001452,2]
[347186549,1735554668956,-2837.22,0.0001452,2]
[347186550,1735554668967,-2119.17,0.0001452,2]
[347186551,1735554668976,-1401.43,0.0001452,2]
[347186552,1735554668986,-500.0,0.0001452,2]
[347186553,1735554668996,-500.0,0.0001452,2]
[347186554,1735554669006,-804.5,0.0001452,2]
[347186555,1735554669015,-2511.83,0.0001452,2]
[347186556,1735554669025,-895.97,0.0001452,2]
[347186557,1735554669034,-519.41,0.0001452,2]
[347186558,1735554669043,-2223.57,0.0001452,2]
[347186559,1735554669053,-3557.82,0.0001452,2]
[347186560,1735554669062,-500.0,0.0001452,2]
[347186561,1735554669072,-500.0,0.0001452,2]
[347186562,1735554669081,-1235.09,0.0001452,2]
[347186563,1735554669091,-500.0,0.0001452,2]
[347186564,1735554669101,-961.58,0.0001452,2]
[347186565,1735554669111,-500.0,0.0001452,2]
[347186566,1735554669121,-789.39,0.0001452,2]
[347186567,1735554669130,-1220.94,0.0001452,2]
[347186568,1735554669140,-700.0,0.0001452,2]
[347186569,1735554669150,-1334.12,0.0001452,2]
[347186570,1735554669160,-15520.84,0.0001452,2]
[347186571,1735554669169,-1799.96,0.0001452,2]
[347186572,1735554669181,-1420.5,0.0001452,2]
[347186573,1735554669191,-3118.65,0.0001452,2]
[347186574,1735554669200,-948.01,0.0001452,2]
[347186575,1735554669210,-508.60245366,0.0001452,2]
[347186576,1735554669222,-655.39,0.0001452,2]
[347186577,1735554669231,-500.0,0.0001452,2]
[347186578,1735554669241,-1481.38,0.0001452,2]
[347186579,1735554669250,-2122.08,0.0001452,2]
[347186580,1735554669259,-500.0,0.0001452,2]
[347186581,1735554669268,-695.05,0.0001452,2]
[347186582,1735554669277,-1130.97,0.0001452,2]
[347186583,1735554669287,-500.0,0.0001452,2]
[347186584,1735554669296,-964.77,0.0001452,2]
[347186585,1735554669306,-2743.83,0.0001452,2]
[347186586,1735554669315,-995.84,0.0001452,2]
[347186587,1735554669325,-500.0,0.0001452,2]
[347186588,1735554669334,-1294.06,0.0001452,2]
[347186589,1735554669344,-501.51466838,0.0001452,2]
[347186590,1735554669354,-256.600673,0.0001452,2]
[347186591,1735554669363,-1717.36,0.0001452,2]
[347186592,1735554669373,-504.19,0.0001452,2]
[347186593,1735554669382,-1429.45,0.0001452,2]
[347186594,1735554669392,-500.0,0.0001452,2]
[347186595,1735554669402,-500.0,0.0001452,2]
[347186596,1735554669411,-1021.02,0.0001452,2]
[347186597,1735554669421,-3809.03,0.0001452,2]
[347186598,1735554669431,-500.0,0.0001452,2]
[347186599,1735554669440,-500.0,0.0001452,2]
[347186600,1735554669451,-2701.33,0.0001452,2]
[347186601,1735554669460,-500.0,0.0001452,2]
[347186602,1735554669470,-500.0,0.0001452,2]
[347186603,1735554669479,-2078.6,0.0001452,2]
[347186604,1735554669489,-3469.31,0.0001452,2]
[347186605,1735554669498,-788.38,0.0001452,2]
[347186606,1735554669507,-777.08,0.0001452,2]
[347186607,1735554669517,-529.45,0.0001452,2]
[347186608,1735554669526,-500.0,0.0001452,2]
[347186609,1735554669535,-999.37,0.0001452,2]
[347186610,1735554669545,-3390.93,0.0001452,2]
[347186611,1735554669554,-500.0,0.0001452,2]
[347186612,1735554669562,-500.0,0.0001452,2]
[347186613,1735554669571,-838.45,0.0001452,2]
[347186614,1735554669581,-500.0,0.0001452,2]
[347186615,1735554669591,-500.0,0.0001452,2]
[347186616,1735554669601,-565.11,0.0001452,2]
[347186617,1735554669610,-3116.51,0.0001452,2]
[347186618,1735554669620,-824.29,0.0001452,2]
[347186619,1735554669629,-500.0,0.0001452,2]
[347186620,1735554669639,-2085.66,0.0001452,2]
[347186621,1735554669648,-1158.25,0.0001452,2]
[347186622,1735554669657,-555.14,0.0001452,2]
[347186623,1735554669666,-1664.6,0.0001452,2]
[347186624,1735554669675,-826.92,0.0001452,2]
[347186625,1735554669685,-7960.63,0.0001452,2]
[347186626,1735554669694,-4913.88,0.0001452,2]
[347186627,1735554669703,-3550.08,0.0001452,2]
[347186628,1735554669713,-4923.98,0.0001452,2]
[347186629,1735554669724,-1277.48,0.0001452,2]
[347186630,1735554669734,-1076.9,0.0001452,2]
[347186631,1735554669743,-1945.05,0.0001452,2]
[347186632,1735554669752,-500.0,0.0001452,2]
[347186633,1735554669762,-2958.04,0.0001452,2]
[347186634,1735554669770,-1526.0,0.0001452,2]
[347186635,1735554669780,-867.36,0.0001452,2]
[347186636,1735554669789,-1785.33,0.0001452,2]
[347186637,1735554669799,-873.64,0.0001452,2]
[347186638,1735554669808,-902.97,0.0001452,2]
[347186639,1735554669818,-500.0,0.0001452,2]
[347186640,1735554669828,-1948.24,0.0001452,2]
[347186641,1735554669838,-838.43,0.0001452,2]
[347186642,1735554669847,-3634.37,0.0001452,2]
[347186643,1735554669857,-1262.2,0.0001452,2]
[347186644,1735554669867,-4406.04,0.0001452,2]
[347186645,1735554669877,-2536.67,0.0001452,2]
[347186646,1735554669887,-1619.44,0.0001452,2]
[347186647,1735554669897,-154.085996,0.0001452,2]
[347186648,1735554669907,-3415.04,0.0001452,2]
[347186649,1735554669917,-500.0,0.0001452,2]
[347186650,1735554669927,-1621.07,0.0001452,2]
[347186651,1735554669936,-500.0,0.0001452,2]
[347186652,1735554669945,-500.0,0.0001452,2]
[347186653,1735554669955,-24680.01,0.0001452,2]
[347186654,1735554669964,-500.0,0.0001452,2]
[347186655,1735554669977,-191.848991,0.0001452,2]
[347186656,1735554669987,-1329.52,0.0001452,2]
[347186657,1735554669997,-3369.5,0.0001452,2]
[347186658,1735554670007,-21241.19,0.0001452,2]
[347186659,1735554670017,-8051.77,0.0001452,2]
[347186660,1735554670027,-500.0,0.0001452,2]
[347186661,1735554670036,-818.37,0.0001452,2]
[347186662,1735554670046,-2962.92,0.0001452,2]
[347186663,1735554670055,-900.18,0.0001452,2]
[347186664,1735554670065,-2005.67,0.0001452,2]
[347186665,1735554670074,-922.91,0.0001452,2]
[347186666,1735554670084,-7841.0,0.0001452,2]
[347186667,1735554670093,-500.0,0.0001452,2]
[347186668,1735554670105,-500.0,0.0001452,2]
[347186669,1735554670115,-4683.43,0.0001452,2]
[347186670,1735554670124,-1725.02,0.0001452,2]
[347186671,1735554670134,-851.58,0.0001452,2]
[347186672,1735554670143,-1737.99,0.0001452,2]
[347186673,1735554670153,-1371.79,0.0001452,2]
[347186674,1735554670162,-908.23,0.0001452,2]
[347186675,1735554670172,-1034.9,0.0001452,2]
[347186676,1735554670181,-2087.39,0.0001452,2]
[347186677,1735554670191,-500.0,0.0001452,2]
[347186678,1735554670200,-1354.54,0.0001452,2]
[347186679,1735554670209,-500.0,0.0001452,2]
[347186680,1735554670219,-500.0,0.0001452,2]
[347186681,1735554670229,-605.10748659,0.0001452,2]
[347186682,1735554670239,-5139.4,0.0001452,2]
[347186683,1735554670248,-1765.84,0.0001452,2]
[347186684,1735554670258,-3255.81,0.0001452,2]
[347186685,1735554670267,-500.0,0.0001452,2]
[347186686,1735554670277,-500.0,0.0001452,2]
[347186687,1735554670287,-1725.59,0.0001452,2]
[347186688,1735554670296,-3980.02,0.0001452,2]
[347186689,1735554670305,-2612.63,0.0001452,2]
[347186690,1735554670315,-500.0,0.0001452,2]
[347186691,1735554670324,-1895.75,0.0001452,2]
[347186692,1735554670333,-502.26526517,0.0001452,2]
[347186693,1735554670342,-879.99,0.0001452,2]
[347186694,1735554670352,-659.37,0.0001452,2]
[347186695,1735554670362,-3869.8,0.0001452,2]
[347186696,1735554670371,-500.0,0.0001452,2]
[347186697,1735554670526,-1879.64,0.0001452,2]
[347186698,1735554670537,-594.06,0.0001452,2]
[347186699,1735554670546,-7283.26,0.0001452,2]
[347186700,1735554670556,-538.35,0.0001452,2]
[347186701,1735554670565,-2083.66,0.0001452,2]
[347186702,1735554670574,-1245.34,0.0001452,2]
[347186703,1735554670584,-1437.99,0.0001452,2]
[347186704,1735554670593,-1874.96,0.0001452,2]
[347186705,1735554670602,-4047.83,0.0001452,2]
[347186706,1735554670612,-2434.76,0.0001452,2]
[347186707,1735554670621,-150.748465,0.0001452,2]
[347186708,1735554670631,-3415.24,0.0001452,2]
[347186709,1735554670640,-162.50270032,0.0001452,2]
[347186710,1735554670650,-2910.83,0.0001452,2]
[347186711,1735554670659,-500.0,0.0001452,2]
[347186712,1735554670668,-2358.95,0.0001452,2]
[347186713,1735554670677,-152.71611,0.0001452,2]
[347186714,1735554670686,-1380.68,0.0001452,2]
[347186715,1735554670695,-500.0,0.0001452,2]
[347186716,1735554670705,-3932.53,0.0001452,2]
[347186717,1735554670715,-887.39,0.0001452,2]
[347186718,1735554670726,-2451.98,0.0001452,2]
[347186719,1735554670736,-500.0,0.0001452,2]
[347186720,1735554670745,-1630.29,0.0001452,2]
[347186721,1735554670755,-2806.59,0.0001452,2]
[347186722,1735554670764,-5043.23,0.0001452,2]
[347186723,1735554670774,-500.0,0.0001452,2]
[347186724,1735554670784,-1907.3,0.0001452,2]
[347186725,1735554670793,-2710.39,0.0001452,2]
[347186726,1735554670803,-1803.4,0.0001452,2]
[347186727,1735554670812,-697.826531,0.0001452,2]
[347186728,1735554670822,-578.16,0.0001452,2]
[347186729,1735554670833,-500.0,0.0001452,2]
[347186730,1735554670843,-500.0,0.0001452,2]
[347186731,1735554670852,-15410.93,0.0001452,2]
[347186732,1735554670862,-478.47217204,0.0001452,2]
[347186733,1735554670871,-3063.52,0.0001452,2]
[347186734,1735554670881,-778.96,0.0001452,2]
[347186735,1735554670891,-1315.44,0.0001452,2]
[347186736,1735554670900,-772.53,0.0001452,2]
[347186737,1735554670910,-500.0,0.0001452,2]
[347186738,1735554670919,-2023.47,0.0001452,2]
[347186739,1735554670928,-10853.58,0.0001452,2]
[347186740,1735554670938,-1018.75,0.0001452,2]
[347186741,1735554670947,-1539.27,0.0001452,2]
[347186742,1735554670956,-1421.06,0.0001452,2]
[347186743,1735554670966,-4226.36,0.0001452,2]
[347186744,1735554670976,-1661.62,0.0001452,2]
[347186745,1735554670986,-500.0,0.0001452,2]
[347186746,1735554670996,-1154.95,0.0001452,2]
[347186747,1735554671005,-500.0,0.0001452,2]
[347186748,1735554671015,-19002.09,0.0001452,2]
[347186749,1735554671025,-500.0,0.0001452,2]
[347186750,1735554671034,-13799.11,0.0001452,2]
[347186751,1735554671043,-1060.349808,0.0001452,2]
[347186752,1735554671053,-2447.22,0.0001452,2]
[347186753,1735554671062,-1853.19,0.0001452,2]
[347186754,1735554671071,-1368.0,0.0001452,2]
[347186755,1735554671081,-500.0,0.0001452,2]
[347186756,1735554671091,-4504.39,0.0001452,2]
[347186757,1735554671102,-579.82,0.0001452,2]
[347186758,1735554671113,-500.0,0.0001452,2]
[347186759,1735554671122,-7288.85,0.0001452,2]
[347186760,1735554671131,-574.32,0.0001452,2]
[347186761,1735554671141,-3768.96,0.0001452,2]
[347186762,1735554671153,-1624.8,0.0001452,2]
[347186763,1735554671163,-3241.01,0.0001452,2]
[347186764,1735554671173,-4417.28,0.0001452,2]
[347186765,1735554671188,-500.0,0.0001452,2]
[347186766,1735554671198,-1658.66,0.0001452,2]
[347186767,1735554671208,-1860.22,0.0001452,2]
[347186768,1735554671219,-500.0,0.0001452,2]
[347186769,1735554671230,-921.331711,0.0001452,2]
[347186770,1735554671240,-1376.93,0.0001452,2]
[347186771,1735554671249,-500.0,0.0001452,2]
[347186772,1735554671259,-565.05,0.0001452,2]
[347186773,1735554671269,-12335.02,0.0001452,2]
[347186774,1735554671279,-511.39,0.0001452,2]
[347186775,1735554671290,-5391.31,0.0001452,2]
[347186776,1735554671300,-1492.07,0.0001452,2]
[347186777,1735554671310,-2462.72,0.0001452,2]
[347186778,1735554671320,-4206.8,0.0001452,2]
[347186779,1735554671330,-624.54,0.0001452,2]
[347186780,1735554671341,-1329.67,0.0001452,2]
[347186781,1735554671351,-500.0,0.0001452,2]
[347186782,1735554671361,-3747.13,0.0001452,2]
[347186783,1735554671371,-500.0,0.0001452,2]
[347186784,1735554671380,-2416.75,0.0001452,2]
[347186785,1735554671390,-500.0,0.0001452,2]
[347186786,1735554671399,-1532.57,0.0001452,2]
[347186787,1735554671410,-500.0,0.0001452,2]
[347186788,1735554671420,-667.51,0.0001452,2]
[347186789,1735554671430,-1109.85,0.0001452,2]
[347186790,1735554671439,-1884.81,0.0001452,2]
[347186791,1735554671449,-2393.86,0.0001452,2]
[347186792,1735554671460,-500.0,0.0001452,2]
[347186793,1735554671470,-768.73,0.0001452,2]
[347186794,1735554671480,-500.0,0.0001452,2]
[347186795,1735554671490,-500.0,0.0001452,2]
[347186796,1735554671500,-2701.5,0.0001452,2]
[347186797,1735554671510,-1145.33,0.0001452,2]
[347186798,1735554671521,-500.0,0.0001452,2]
[347186799,1735554671531,-500.0,0.0001452,2]
[347186800,1735554671541,-1842.45,0.0001452,2]
[347186801,1735554671551,-1022.94,0.0001452,2]
[347186802,1735554671562,-2458.37,0.0001452,2]
[347186803,1735554671572,-2768.22,0.0001452,2]
[347186804,1735554671582,-500.0,0.0001452,2]
[347186805,1735554671592,-602.240036,0.0001452,2]
[347186806,1735554671602,-1309.59,0.0001452,2]
[347186807,1735554671612,-2222.11,0.0001452,2]
[347186808,1735554671621,-500.0,0.0001452,2]
[347186809,1735554671631,-1184.42,0.0001452,2]
[347186810,1735554671640,-1975.49,0.0001452,2]
[347186811,1735554671650,-500.0,0.0001452,2]
[347186812,1735554671659,-2054.1,0.0001452,2]
[347186813,1735554671669,-1526.92,0.0001452,2]
[347186814,1735554671678,-500.0,0.0001452,2]
[347186815,1735554671688,-2498.78,0.0001452,2]
[347186816,1735554671697,-607.46,0.0001452,2]
[347186817,1735554671707,-500.0,0.0001452,2]
[347186818,1735554671717,-500.0,0.0001452,2]
[347186819,1735554671727,-633.07,0.0001452,2]
[347186820,1735554671737,-1514.9,0.0001452,2]
[347186821,1735554671746,-502.24,0.0001452,2]
[347186822,1735554671756,-798.38,0.0001452,2]
[347186823,1735554671766,-1000.0,0.00014521,2]
[347186824,1735554671776,-1000.0,0.00014521,2]
[347186825,1735554671786,-687.64204651,0.00014521,2]
[347186826,1735554671796,-500.0,0.00014521,2]
[347186827,1735554671806,-1500.0,0.00014522,2]
[347186828,1735554671816,-500.0,0.00014538,2]
[347186829,1735554671826,-201.01,0.00014543,2]
[347186830,1735554671837,-500.0,0.00014572,2]
[347186831,1735554671847,-201.41380375,0.00014572,2]
[347186832,1735554671856,-500.0,0.00014572,2]
[347186833,1735554671866,-150.0,0.00014572,2]
[347186834,1735554671876,-2827.0,0.00014572,2]
[347186835,1735554671885,-1648.0,0.00014572,2]
[347186836,1735554671895,-150.0,0.00014572,2]
[347186837,1735554671905,-500.0,0.00014572,2]
[347186838,1735554671914,-150.0,0.00014572,2]
[347186839,1735554671925,-244.52704796,0.00014572,2]
[347186840,1735554671935,-500.0,0.00014572,2]
[347186841,1735554671945,-150.0,0.00014572,2]
[347186842,1735554671955,-150.0,0.00014572,2]
[347186843,1735554671965,-500.0,0.00014572,2]
[347186844,1735554671977,-500.0,0.00014572,2]
[347186845,1735554671988,-500.0,0.00014573,2]
[347186846,1735554671998,-456.0,0.0001458,2]
[347186847,1735554672008,-314.0,0.0001458,2]
[347186848,1735554672018,-500.0,0.00014675,2]
[347186849,1735554672028,-150.0,0.00014709,2]
[347186850,1735554672038,-456.0,0.0001476,2]
[347186851,1735554672048,-314.0,0.0001476,2]
[347186852,1735554672058,-14101.93335681,0.00014771,2]
[347186853,1735554672067,-666.0,0.00014793,2]
[347186854,1735554672077,-666.0,0.00014793,2]
[347186855,1735554672086,-151.0,0.00014794,2]
[347186856,1735554672096,-273.371652,0.00014794,2]
[347186857,1735554672111,-273.371652,0.00014794,2]
[347186858,1735554672121,-1587.087385,0.00014794,2]
[347186859,1735554672130,-500.0,0.00014794,2]
[347186860,1735554672139,-515.86,0.00014794,2]
[347186861,1735554672148,-500.0,0.00014794,2]
[347186862,1735554672157,-500.0,0.00014794,2]
[347186863,1735554672167,-500.0,0.00014794,2]
[347186864,1735554672176,-644.59,0.00014794,2]
[347186865,1735554672185,-622.02799667,0.00014794,2]
[347186866,1735554672196,-582.06,0.00014794,2]
[347186867,1735554672205,-353.45894672,0.00014794,2]
[347186868,1735554672215,-627.92,0.00014794,2]
[347186869,1735554672227,-500.0,0.00014794,2]
[347186870,1735554672236,-500.0,0.00014794,2]
[347186871,1735554672246,-500.0,0.00014794,2]